[Event "ONJK DE"]
[Site "Enschede, Netherlands"]
[Date "2022.08.11"]
[Round "8.4"]
[White "Verwer, Oscar"]
[Black "Van Ewijk, Abel"]
[Result "1-0"]
[TimeControl "40min + 30sec/move"]
[WhiteElo "1361"]
[BlackElo "1096"]

1. e4 {[%clk 00:40:59]} e5 {[%clk 00:40:59]} {[%emt 00:00:02]} 2. Nf3 {[%clk
00:41:24]} {[%emt 00:00:04]} Nc6 {[%clk 00:41:22]} {[%emt 00:00:08]} 3. d4
{[%clk 00:41:50]} {[%emt 00:00:04]} exd4 {[%clk 00:41:43]} {[%emt 00:00:09]} 4.
Bc4 {[%clk 00:42:15]} {[%emt 00:00:04]} Bc5 {[%clk 00:41:23]} {[%emt 00:00:50]}
5. c3 {[%clk 00:42:40]} {[%emt 00:00:06]} Nf6 {[%clk 00:41:26]} {[%emt
00:00:26]} 6. cxd4 {[%clk 00:42:40]} {[%emt 00:00:30]} Bb4+ {[%clk 00:41:01]}
{[%emt 00:00:56]} 7. Bd2 {[%clk 00:42:32]} {[%emt 00:00:38]} Nxe4 {[%clk
00:41:03]} {[%emt 00:00:27]} 8. Bxb4 {[%clk 00:42:00]} {[%emt 00:01:02]} Nxb4
{[%clk 00:41:13]} {[%emt 00:00:21]} 9. Qb3 {[%clk 00:42:16]} {[%emt 00:00:14]}
Qe7 {[%clk 00:39:33]} {[%emt 00:02:09]} 10. O-O {[%clk 00:42:15]} {[%emt
00:00:32]} O-O {[%clk 00:37:32]} {[%emt 00:02:31]} 11. Re1 {[%clk 00:42:10]}
{[%emt 00:00:35]} b6 {[%clk 00:36:31]} {[%emt 00:01:32]} 12. Nc3 {[%clk
00:40:17]} {[%emt 00:02:23]} Bb7 {[%clk 00:36:30]} {[%emt 00:00:30]} 13. d5
{[%clk 00:39:50]} {[%emt 00:00:57]} f5 {[%clk 00:36:23]} {[%emt 00:00:37]} 14.
d6+ {[%clk 00:40:01]} {[%emt 00:00:20]} Nd5 {[%clk 00:32:12]} {[%emt 00:04:40]}
15. dxe7 {[%clk 00:39:47]} {[%emt 00:00:44]} Rfe8 {[%clk 00:32:10]} {[%emt
00:00:32]} 16. Bxd5+ {[%clk 00:40:00]} {[%emt 00:00:17]} Bxd5 {[%clk 00:31:55]}
{[%emt 00:00:45]} 17. Qxd5+ {[%clk 00:40:21]} {[%emt 00:00:09]} Kh8 {[%clk
00:32:08]} {[%emt 00:00:17]} 18. Nxe4 {[%clk 00:40:33]} {[%emt 00:00:18]} fxe4
{[%clk 00:32:09]} {[%emt 00:00:29]} 19. Ng5 {[%clk 00:40:35]} {[%emt 00:00:28]}
d6 {[%clk 00:31:21]} {[%emt 00:01:18]} 20. Nf7+ {[%clk 00:40:45]} {[%emt
00:00:20]} Kg8 {[%clk 00:31:12]} {[%emt 00:00:39]} 21. Nh6+ {[%clk 00:41:04]}
{[%emt 00:00:11]} Kh8 {[%clk 00:31:14]} {[%emt 00:00:27]} 22. Qg8+ Rxg8 {[%clk
00:31:19]} 23. Nf7# {[%clk 00:41:55]} {[%emt 00:00:03]} 1-0

[Event "ONJK DE"]
[Site "Enschede, Netherlands"]
[Date "2022.08.11"]
[Round "8.5"]
[White "De Wit, Evan"]
[Black "Breider, Jayden"]
[Result "1/2-1/2"]
[TimeControl "40min + 30sec/move"]
[WhiteElo "1001"]
[BlackElo "1350"]

1. d4 {[%clk 00:40:58]} {[%emt 00:00:01]} Nf6 {[%clk 00:40:54]} {[%emt
00:00:06]} 2. c4 {[%clk 00:41:20]} {[%emt 00:00:09]} e6 {[%clk 00:41:17]}
{[%emt 00:00:07]} 3. Nf3 {[%clk 00:41:39]} {[%emt 00:00:11]} b6 {[%clk
00:41:33]} {[%emt 00:00:14]} 4. g3 {[%clk 00:41:47]} {[%emt 00:00:22]} Bb7
{[%clk 00:41:48]} {[%emt 00:00:14]} 5. Bg2 {[%clk 00:42:06]} {[%emt 00:00:11]}
Nc6 {[%clk 00:41:24]} {[%emt 00:00:55]} 6. O-O {[%clk 00:41:51]} {[%emt
00:00:44]} Be7 {[%clk 00:41:47]} {[%emt 00:00:08]} 7. Nc3 {[%clk 00:42:10]}
{[%emt 00:00:10]} d5 {[%clk 00:41:55]} {[%emt 00:00:22]} 8. cxd5 {[%clk
00:42:22]} {[%emt 00:00:18]} exd5 {[%clk 00:42:14]} {[%emt 00:00:11]} 9. Bf4
{[%clk 00:42:40]} {[%emt 00:00:12]} a6 {[%clk 00:41:28]} {[%emt 00:01:17]} 10.
Re1 {[%clk 00:42:46]} {[%emt 00:00:23]} O-O {[%clk 00:38:35]} {[%emt 00:03:24]}
11. a3 {[%clk 00:43:01]} {[%emt 00:00:15]} Ne4 {[%clk 00:38:10]} {[%emt
00:00:54]} 12. Nxe4 {[%clk 00:42:38]} {[%emt 00:00:53]} dxe4 {[%clk 00:37:37]}
{[%emt 00:01:04]} 13. d5 {[%clk 00:40:17]} {[%emt 00:02:51]} Nb8 {[%clk
00:30:59]} {[%emt 00:07:08]} 14. Nd2 {[%clk 00:39:46]} {[%emt 00:01:00]} Bxd5
{[%clk 00:30:00]} {[%emt 00:01:30]} 15. Nxe4 {[%clk 00:39:22]} {[%emt
00:00:54]} c6 {[%clk 00:29:50]} {[%emt 00:00:40]} 16. Nc3 {[%clk 00:38:44]}
{[%emt 00:01:07]} Bxg2 {[%clk 00:29:31]} {[%emt 00:00:49]} 17. Kxg2 {[%clk
00:39:03]} {[%emt 00:00:12]} Nd7 {[%clk 00:29:05]} {[%emt 00:00:55]} 18. Ne4
{[%clk 00:38:58]} {[%emt 00:00:35]} Nc5 {[%clk 00:25:21]} {[%emt 00:04:14]} 19.
Nxc5 {[%clk 00:38:23]} {[%emt 00:01:05]} Bxc5 {[%clk 00:25:33]} {[%emt
00:00:18]} 20. Qxd8 {[%clk 00:36:09]} {[%emt 00:02:44]} Raxd8 {[%clk 00:25:20]}
{[%emt 00:00:44]} 21. Rad1 {[%clk 00:36:03]} {[%emt 00:00:35]} a5 {[%clk
00:23:24]} {[%emt 00:02:26]} 22. Bc7 {[%clk 00:35:04]} {[%emt 00:01:30]} Rxd1
{[%clk 00:20:59]} {[%emt 00:02:55]} 23. Rxd1 {[%clk 00:35:20]} {[%emt
00:00:14]} Re8 {[%clk 00:21:20]} {[%emt 00:00:10]} 24. h4 {[%clk 00:35:00]}
{[%emt 00:00:48]} h6 {[%clk 00:19:37]} {[%emt 00:02:14]} 25. e3 {[%clk
00:35:10]} {[%emt 00:00:19]} Re4 {[%clk 00:18:11]} {[%emt 00:01:56]} 26. Kf3
{[%clk 00:34:28]} {[%emt 00:01:12]} Rc4 {[%clk 00:16:10]} {[%emt 00:02:31]} 27.
Rd2 {[%clk 00:34:04]} {[%emt 00:00:55]} f5 {[%clk 00:14:35]} {[%emt 00:02:05]}
28. Ke2 {[%clk 00:33:24]} {[%emt 00:01:10]} Re4 {[%clk 00:14:14]} {[%emt
00:00:51]} 29. Rd3 {[%clk 00:32:51]} {[%emt 00:01:02]} Kf7 {[%clk 00:11:13]}
{[%emt 00:03:33]} 30. Rb3 {[%clk 00:32:48]} {[%emt 00:00:32]} a4 {[%clk
00:11:03]} {[%emt 00:00:40]} 31. Rd3 {[%clk 00:32:40]} {[%emt 00:00:37]} g6
{[%clk 00:08:49]} {[%emt 00:02:46]} 32. f3 {[%clk 00:30:33]} {[%emt 00:02:35]}
Re7 {[%clk 00:06:11]} {[%emt 00:03:08]} 33. Bd6 {[%clk 00:28:03]} {[%emt
00:03:01]} Bxd6 {[%clk 00:05:54]} {[%emt 00:00:47]} 34. Rxd6 {[%clk 00:28:26]}
{[%emt 00:00:07]} Re6 {[%clk 00:06:22]} {[%emt 00:00:03]} 35. Rxe6 {[%clk
00:27:43]} {[%emt 00:01:13]} Kxe6 {[%emt 00:00:08]} 36. Kd3 {[%clk 00:27:58]}
{[%emt 00:00:13]} b5 {[%clk 00:06:40]} {[%emt 00:00:36]} 37. Kc3 {[%clk
00:26:28]} {[%emt 00:01:59]} c5 {[%clk 00:06:29]} {[%emt 00:00:41]} 38. b3
{[%clk 00:25:39]} {[%emt 00:01:19]} b4+ {[%clk 00:01:41]} {[%emt 00:05:19]} 39.
axb4 {[%clk 00:25:33]} {[%emt 00:00:35]} cxb4+ {[%clk 00:02:02]} {[%emt
00:00:10]} 40. Kxb4 {[%clk 00:25:34]} {[%emt 00:00:29]} axb3 {[%clk 00:02:21]}
{[%emt 00:00:12]} 41. Kxb3 {[%clk 00:25:24]} {[%emt 00:00:39]} g5 {[%clk
00:02:18]} {[%emt 00:00:33]} 42. hxg5 hxg5 {[%clk 00:02:42]} 43. Kc3 {[%clk
00:23:53]} {[%emt 00:00:41]} Ke5 {[%clk 00:02:57]} {[%emt 00:00:15]} 44. Kd3
{[%clk 00:22:30]} {[%emt 00:01:53]} f4 {[%clk 00:03:03]} {[%emt 00:00:24]} 45.
exf4+ {[%clk 00:22:27]} {[%emt 00:00:32]} gxf4 {[%clk 00:03:23]} {[%emt
00:00:10]} 46. g4 {[%clk 00:22:37]} {[%emt 00:00:20]} Kd5 {[%clk 00:03:42]}
{[%emt 00:00:12]} 47. Kc3 {[%clk 00:21:54]} {[%emt 00:01:11]} Kc5 {[%clk
00:03:02]} {[%emt 00:01:12]} 48. Kd2 {[%clk 00:21:55]} {[%emt 00:00:29]} Kd4
{[%clk 00:03:21]} {[%emt 00:00:11]} 49. Ke2 {[%clk 00:21:19]} {[%emt 00:01:05]}
Ke5 {[%clk 00:03:26]} {[%emt 00:00:24]} 50. Kf2 {[%clk 00:21:24]} {[%emt
00:00:26]} Kf6 {[%clk 00:03:07]} {[%emt 00:00:50]} 51. Kg2 {[%clk 00:21:46]}
{[%emt 00:00:08]} Kg6 {[%clk 00:03:09]} {[%emt 00:00:28]} 52. Kh2 {[%clk
00:21:48]} {[%emt 00:00:27]} Kh6 {[%clk 00:03:20]} {[%emt 00:00:20]} 53. Kg2
{[%clk 00:21:39]} {[%emt 00:00:38]} Kg6 {[%clk 00:03:37]} {[%emt 00:00:13]} 54.
Kf2 {[%clk 00:21:45]} {[%emt 00:00:24]} Kf6 {[%clk 00:04:01]} {[%emt 00:00:05]}
55. Ke2 {[%clk 00:21:37]} {[%emt 00:00:38]} Ke5 {[%clk 00:03:12]} {[%emt
00:01:20]} 56. Kd3 {[%clk 00:20:13]} {[%emt 00:02:29]} Kd5 {[%clk 00:03:30]}
{[%emt 00:00:11]} 57. Kc3 {[%clk 00:20:18]} {[%emt 00:00:25]} Kc5 {[%clk
00:03:51]} {[%emt 00:00:10]} 58. g5 {[%clk 00:20:10]} {[%emt 00:00:38]} Kd5
{[%clk 00:04:14]} {[%emt 00:00:07]} 59. g6 {[%clk 00:19:56]} {[%emt 00:00:43]}
Ke6 {[%clk 00:04:41]} {[%emt 00:00:05]} 60. g7 {[%clk 00:19:21]} {[%emt
00:01:04]} Kf7 {[%clk 00:05:00]} {[%emt 00:00:11]} 61. Kd4 {[%clk 00:19:40]}
{[%emt 00:00:11]} Kxg7 {[%clk 00:05:16]} {[%emt 00:00:15]} 62. Ke4 {[%clk
00:19:49]} {[%emt 00:00:20]} Kf7 {[%clk 00:05:24]} {[%emt 00:00:22]} 63. Kxf4
{[%clk 00:20:12]} {[%emt 00:00:07]} Kf6 {[%clk 00:05:39]} {[%emt 00:00:15]} 64.
Kg3 {[%clk 00:17:32]} {[%emt 00:01:47]} Kg5 {[%clk 00:05:39]} 1/2-1/2

[Event "ONJK DE"]
[Site "Enschede, Netherlands"]
[Date "2022.08.11"]
[Round "8.6"]
[White "Katpatal, Akshaj (E)"]
[Black "Los, Evan"]
[Result "1-0"]
[TimeControl "40min + 30sec/move"]
[WhiteElo "1874"]
[BlackElo "1050"]

1. e4 {[%clk 00:40:57]} {[%emt 00:00:02]} e5 {[%clk 00:40:55]} {[%emt
00:00:05]} 2. Nf3 {[%clk 00:41:23]} {[%emt 00:00:03]} Nc6 {[%clk 00:41:22]}
{[%emt 00:00:04]} 3. Nc3 {[%clk 00:41:41]} {[%emt 00:00:12]} Nf6 {[%clk
00:41:45]} {[%emt 00:00:07]} 4. Bc4 {[%clk 00:42:07]} {[%emt 00:00:05]} Bc5
{[%clk 00:42:07]} {[%emt 00:00:07]} 5. d3 {[%clk 00:42:32]} {[%emt 00:00:05]}
h6 {[%clk 00:42:06]} {[%emt 00:00:32]} 6. Be3 {[%clk 00:42:56]} {[%emt
00:00:06]} Bb6 {[%clk 00:42:26]} {[%emt 00:00:10]} 7. Qd2 {[%clk 00:43:19]}
{[%emt 00:00:06]} d6 {[%clk 00:42:52]} {[%emt 00:00:04]} 8. d4 {[%clk
00:43:41]} {[%emt 00:00:08]} exd4 {[%clk 00:42:49]} {[%emt 00:00:33]} 9. Nxd4
{[%clk 00:44:06]} {[%emt 00:00:05]} Nxd4 {[%clk 00:42:54]} {[%emt 00:00:25]} 10.
Bxd4 {[%clk 00:44:14]} {[%emt 00:00:22]} Be6 {[%clk 00:42:02]} {[%emt
00:01:22]} 11. Bb3 {[%clk 00:44:35]} {[%emt 00:00:09]} Qd7 {[%clk 00:41:54]}
{[%emt 00:00:38]} 12. O-O {[%clk 00:44:09]} {[%emt 00:00:57]} O-O {[%clk
00:42:09]} {[%emt 00:00:14]} 13. Bxf6 {[%clk 00:44:32]} {[%emt 00:00:07]} gxf6
{[%clk 00:42:24]} {[%emt 00:00:16]} 14. Qxh6 {[%clk 00:44:55]} {[%emt
00:00:06]} f5 {[%clk 00:42:35]} {[%emt 00:00:19]} 15. exf5 {[%clk 00:45:11]}
{[%emt 00:00:14]} Bxf5 {[%clk 00:42:59]} {[%emt 00:00:06]} 16. Nd5 {[%clk
00:45:30]} {[%emt 00:00:12]} Bd4 {[%clk 00:42:06]} {[%emt 00:01:23]} 17. Qg5+
{[%clk 00:45:22]} {[%emt 00:00:37]} Bg6 {[%clk 00:42:04]} {[%emt 00:00:32]} 18.
h4 {[%clk 00:44:58]} {[%emt 00:00:54]} Kh7 {[%clk 00:39:57]} {[%emt 00:02:37]}
19. h5 {[%clk 00:44:25]} {[%emt 00:01:03]} Qf5 {[%clk 00:39:27]} {[%emt
00:01:00]} 20. hxg6+ {[%clk 00:44:45]} {[%emt 00:00:09]} fxg6 {[%clk 00:39:21]}
{[%emt 00:00:36]} 21. Qh4+ {[%clk 00:44:58]} {[%emt 00:00:18]} Kg7 {[%clk
00:39:17]} {[%emt 00:00:35]} 22. Qxd4+ {[%clk 00:45:21]} {[%emt 00:00:06]} 1-0

[Event "ONJK DE"]
[Site "Enschede, Netherlands"]
[Date "2022.08.11"]
[Round "8.7"]
[White "Koppenens, Oscar"]
[Black "Thijssen, Freek (E)"]
[Result "0-1"]
[TimeControl "40min + 30sec/move"]
[WhiteElo "1266"]
[BlackElo "1484"]

1. e4 {[%clk 00:40:59]} c5 {[%clk 00:40:52]} {[%emt 00:00:09]} 2. b4 {[%clk
00:41:24]} {[%emt 00:00:05]} cxb4 {[%clk 00:39:40]} {[%emt 00:01:41]} 3. a3
{[%clk 00:41:24]} {[%emt 00:00:30]} bxa3 {[%clk 00:39:14]} {[%emt 00:00:57]} 4.
d4 {[%clk 00:40:43]} {[%emt 00:01:11]} e6 {[%clk 00:38:03]} {[%emt 00:01:41]} 5.
Bxa3 {[%clk 00:40:38]} {[%emt 00:00:33]} Bxa3 {[%clk 00:38:02]} {[%emt
00:00:32]} 6. Nxa3 {[%clk 00:40:39]} {[%emt 00:00:30]} Qa5+ {[%clk 00:37:36]}
{[%emt 00:00:56]} 7. Qd2 {[%clk 00:40:54]} {[%emt 00:00:14]} Qxd2+ {[%clk
00:37:52]} {[%emt 00:00:14]} 8. Kxd2 {[%clk 00:41:20]} {[%emt 00:00:04]} d5
{[%clk 00:29:49]} {[%emt 00:08:34]} 9. e5 {[%clk 00:40:53]} {[%emt 00:00:57]}
Bd7 {[%clk 00:29:45]} {[%emt 00:00:33]} 10. c4 {[%clk 00:40:36]} {[%emt
00:00:47]} Ne7 {[%clk 00:29:53]} {[%emt 00:00:22]} 11. f4 {[%clk 00:40:11]}
{[%emt 00:00:56]} O-O {[%clk 00:29:11]} {[%emt 00:01:12]} 12. Nf3 {[%clk
00:39:48]} {[%emt 00:00:52]} a6 {[%clk 00:28:09]} {[%emt 00:01:32]} 13. Bd3
{[%clk 00:39:19]} {[%emt 00:00:59]} Nbc6 {[%clk 00:27:40]} {[%emt 00:01:00]} 14.
Nb1 {[%clk 00:38:15]} {[%emt 00:01:33]} dxc4 {[%clk 00:26:59]} {[%emt
00:01:11]} 15. Bxc4 {[%clk 00:38:10]} {[%emt 00:00:35]} Nf5 {[%clk 00:26:33]}
{[%emt 00:00:56]} 16. Kc3 {[%clk 00:37:24]} {[%emt 00:01:16]} Rfc8 {[%clk
00:25:32]} {[%emt 00:01:31]} 17. Nbd2 {[%clk 00:34:16]} {[%emt 00:03:38]} b5
{[%clk 00:24:36]} {[%emt 00:01:27]} 18. d5 {[%clk 00:33:33]} {[%emt 00:01:13]}
exd5 {[%clk 00:24:44]} {[%emt 00:00:22]} 19. Bxd5 {[%clk 00:33:47]} {[%emt
00:00:16]} Nce7+ {[%clk 00:24:57]} {[%emt 00:00:15]} 20. Bc4 {[%clk 00:34:00]}
{[%emt 00:00:18]} Ne3 {[%clk 00:20:48]} {[%emt 00:04:40]} 21. Kd3 {[%clk
00:32:13]} {[%emt 00:02:17]} Nxc4 {[%clk 00:21:01]} {[%emt 00:00:17]} 22. Ne4
{[%clk 00:31:31]} {[%emt 00:01:10]} Bf5 {[%clk 00:20:26]} {[%emt 00:01:06]} 23.
Nh4 {[%clk 00:30:57]} {[%emt 00:01:05]} Rd8+ {[%clk 00:20:35]} {[%emt
00:00:21]} 0-1

[Event "ONJK DE"]
[Site "Enschede, Netherlands"]
[Date "2022.08.11"]
[Round "8.8"]
[White "Leenen, Boyd (E)"]
[Black "Tetova, Amir"]
[Result "0-1"]
[TimeControl "40min + 30sec/move"]
[WhiteElo "1417"]
[BlackElo "1154"]

1. e4 {[%clk 00:40:58]} {[%emt 00:00:01]} c5 {[%clk 00:40:57]} {[%emt
00:00:03]} 2. Nf3 {[%clk 00:41:24]} {[%emt 00:00:04]} d6 {[%clk 00:41:24]}
{[%emt 00:00:04]} 3. Bb5+ {[%clk 00:41:50]} {[%emt 00:00:04]} Bd7 {[%clk
00:41:50]} {[%emt 00:00:04]} 4. Bxd7+ {[%clk 00:42:17]} {[%emt 00:00:04]} Nxd7
{[%clk 00:42:37]} {[%emt 00:00:13]} 5. Nc3 {[%clk 00:43:08]} {[%emt 00:00:09]}
Ngf6 {[%clk 00:43:01]} {[%emt 00:00:05]} 6. d4 {[%clk 00:43:31]} {[%emt
00:00:07]} cxd4 {[%clk 00:43:13]} {[%emt 00:00:19]} 7. Nxd4 {[%clk 00:43:39]}
{[%emt 00:00:09]} g6 {[%clk 00:43:37]} {[%emt 00:00:18]} 8. O-O {[%clk
00:43:56]} {[%emt 00:00:14]} Bg7 {[%clk 00:44:04]} {[%emt 00:00:03]} 9. Be3
{[%clk 00:44:17]} {[%emt 00:00:09]} O-O {[%clk 00:44:29]} {[%emt 00:00:04]} 10.
f3 {[%clk 00:44:38]} {[%emt 00:00:09]} Rc8 {[%clk 00:44:55]} {[%emt 00:00:04]}
11. Qd2 {[%clk 00:44:57]} {[%emt 00:00:12]} Ne5 {[%clk 00:45:17]} {[%emt
00:00:08]} 12. b3 {[%clk 00:44:59]} {[%emt 00:00:28]} a6 {[%clk 00:45:42]}
{[%emt 00:00:05]} 13. Nce2 {[%clk 00:45:21]} {[%emt 00:00:07]} b5 {[%clk
00:45:48]} {[%emt 00:00:24]} 14. Rac1 {[%clk 00:45:39]} {[%emt 00:00:13]} Rc7
{[%clk 00:39:28]} {[%emt 00:06:46]} 15. h3 {[%clk 00:45:28]} {[%emt 00:00:44]}
Qd7 {[%clk 00:39:27]} {[%emt 00:00:32]} 16. Nf4 {[%clk 00:44:06]} {[%emt
00:01:51]} Nc6 {[%clk 00:35:03]} {[%emt 00:04:54]} 17. Nxc6 {[%clk 00:44:04]}
{[%emt 00:00:32]} Rxc6 {[%clk 00:35:18]} {[%emt 00:00:15]} 18. Nd5 {[%clk
00:43:38]} {[%emt 00:00:56]} Nxd5 {[%clk 00:35:26]} {[%emt 00:00:23]} 19. Qxd5
{[%clk 00:43:48]} {[%emt 00:00:20]} Rfc8 {[%clk 00:35:25]} {[%emt 00:00:29]} 20.
c4 {[%clk 00:44:09]} {[%emt 00:00:10]} e6 {[%clk 00:34:32]} {[%emt 00:01:23]}
21. Qd3 {[%clk 00:44:23]} {[%emt 00:00:16]} bxc4 {[%clk 00:34:30]} {[%emt
00:00:33]} 22. bxc4 {[%clk 00:44:32]} {[%emt 00:00:21]} Bb2 {[%clk 00:31:26]}
{[%emt 00:03:32]} 23. Rc2 {[%clk 00:44:30]} {[%emt 00:00:34]} Bf6 {[%clk
00:31:03]} {[%emt 00:00:53]} 24. Rd1 {[%clk 00:44:26]} {[%emt 00:00:34]} Be7
{[%clk 00:30:57]} {[%emt 00:00:35]} 25. Bf4 {[%clk 00:41:35]} {[%emt 00:03:21]}
d5 {[%clk 00:30:29]} {[%emt 00:00:59]} 26. Bg3 {[%clk 00:39:32]} {[%emt
00:02:33]} Qa7+ {[%clk 00:30:22]} {[%emt 00:00:37]} 27. Bf2 {[%clk 00:39:32]}
{[%emt 00:00:29]} Qc7 {[%clk 00:30:04]} {[%emt 00:00:49]} 28. exd5 {[%clk
00:39:12]} {[%emt 00:00:50]} exd5 {[%clk 00:30:06]} {[%emt 00:00:28]} 29. c5
{[%clk 00:38:05]} {[%emt 00:01:37]} Bxc5 {[%clk 00:30:12]} {[%emt 00:00:24]} 30.
Qxd5 {[%clk 00:37:52]} {[%emt 00:00:43]} Bxf2+ {[%clk 00:00:00]} {[%emt
00:12:10]} 31. Kxf2 {[%clk 00:36:55]} {[%emt 00:04:00]} Rxc2+ {[%clk 00:30:16]}
{[%emt 00:00:11]} 32. Kf1 {[%clk 00:37:02]} {[%emt 00:00:22]} Qc4+ {[%clk
00:30:34]} {[%emt 00:00:11]} 33. Kg1 {[%clk 00:37:18]} {[%emt 00:00:14]} Qxd5
{[%clk 00:31:00]} {[%emt 00:00:05]} 34. Rxd5 {[%clk 00:37:45]} {[%emt
00:00:02]} Rxa2 {[%clk 00:31:24]} {[%emt 00:00:07]} 35. g4 {[%clk 00:37:55]}
{[%emt 00:00:20]} a5 {[%clk 00:31:50]} {[%emt 00:00:04]} 36. Rg5 {[%emt
00:00:17]} Rc1# {[%clk 00:32:17]} 0-1

[Event "ONJK DE"]
[Site "Enschede, Netherlands"]
[Date "2022.08.12"]
[Round "9.1"]
[White "Groenewoud, Joel"]
[Black "Verwer, Oscar"]
[Result "1-0"]
[TimeControl "40min + 30sec/move"]
[WhiteElo "1497"]
[BlackElo "1361"]

1. e4 {[%clk 00:40:59]} c5 {[%clk 00:40:57]} {[%emt 00:00:04]} 2. Nf3 {[%clk
00:41:26]} {[%emt 00:00:03]} d6 {[%clk 00:41:21]} {[%emt 00:00:05]} 3. d4
{[%clk 00:41:53]} {[%emt 00:00:02]} cxd4 {[%clk 00:41:45]} {[%emt 00:00:06]} 4.
Nxd4 {[%clk 00:42:21]} {[%emt 00:00:03]} Nf6 {[%clk 00:42:09]} {[%emt
00:00:06]} 5. Nc3 {[%clk 00:42:47]} {[%emt 00:00:04]} a6 {[%clk 00:42:33]}
{[%emt 00:00:06]} 6. f3 {[%clk 00:43:13]} {[%emt 00:00:03]} e5 {[%clk
00:42:49]} {[%emt 00:00:14]} 7. Nb3 {[%clk 00:43:39]} {[%emt 00:00:04]} Be7
{[%clk 00:42:25]} {[%emt 00:00:55]} 8. Be3 {[%clk 00:44:02]} {[%emt 00:00:07]}
Be6 {[%clk 00:42:35]} {[%emt 00:00:20]} 9. Qd2 {[%clk 00:44:07]} {[%emt
00:00:25]} h5 {[%clk 00:42:53]} {[%emt 00:00:12]} 10. O-O-O {[%clk 00:44:11]}
{[%emt 00:00:26]} Nbd7 {[%emt 00:00:36]} 11. Nd5 {[%clk 00:44:32]} {[%emt
00:00:07]} Bxd5 {[%clk 00:43:04]} {[%emt 00:00:13]} 12. exd5 {[%clk 00:44:52]}
{[%emt 00:00:12]} b5 {[%clk 00:42:32]} {[%emt 00:01:02]} 13. Na5 {[%clk
00:44:27]} {[%emt 00:00:54]} Qc7 {[%clk 00:39:29]} {[%emt 00:03:34]} 14. Kb1
{[%clk 00:42:41]} {[%emt 00:02:16]} Rc8 {[%clk 00:37:10]} {[%emt 00:02:49]} 15.
c4 {[%clk 00:36:45]} {[%emt 00:06:26]} bxc4 {[%clk 00:25:04]} {[%emt 00:12:36]}
16. Bxc4 {[%clk 00:36:16]} {[%emt 00:00:59]} Nc5 {[%clk 00:24:56]} {[%emt
00:00:38]} 17. Nc6 {[%clk 00:33:37]} {[%emt 00:03:09]} e4 {[%clk 00:17:12]}
{[%emt 00:08:13]} 18. Bxc5 {[%clk 00:31:02]} {[%emt 00:03:05]} dxc5 {[%clk
00:15:32]} {[%emt 00:02:11]} 19. Rhe1 {[%clk 00:31:00]} {[%emt 00:00:32]} O-O
{[%clk 00:13:20]} {[%emt 00:02:41]} 20. fxe4 {[%clk 00:30:57]} {[%emt
00:00:34]} Qd7 {[%clk 00:10:31]} {[%emt 00:03:18]} 21. e5 {[%clk 00:29:40]}
{[%emt 00:01:47]} Ng4 {[%clk 00:08:13]} {[%emt 00:02:48]} 22. h3 {[%clk
00:27:27]} {[%emt 00:02:43]} Nh6 {[%clk 00:07:57]} {[%emt 00:00:46]} 23. Nxe7+
{[%clk 00:25:11]} {[%emt 00:02:46]} Qxe7 {[%clk 00:07:42]} {[%emt 00:00:45]} 24.
d6 {[%clk 00:25:26]} {[%emt 00:00:15]} Qd8 {[%clk 00:06:48]} {[%emt 00:01:24]}
25. e6 {[%clk 00:25:01]} {[%emt 00:00:56]} fxe6 {[%clk 00:06:24]} {[%emt
00:00:54]} 26. Bxe6+ {[%clk 00:25:14]} {[%emt 00:00:17]} Nf7 {[%clk 00:06:22]}
{[%emt 00:00:32]} 27. Bxc8 {[%clk 00:24:35]} {[%emt 00:01:08]} Qxc8 {[%clk
00:06:33]} {[%emt 00:00:19]} 28. Qd5 {[%clk 00:24:46]} {[%emt 00:00:19]} Rd8
{[%clk 00:04:57]} {[%emt 00:02:06]} 29. Re7 {[%clk 00:24:49]} {[%emt 00:00:27]}
1-0

[Event "ONJK DE"]
[Site "Enschede, Netherlands"]
[Date "2022.08.12"]
[Round "9.2"]
[White "Declerck, Adriaan"]
[Black "Frederiks, Jesse"]
[Result "1-0"]
[TimeControl "40min + 30sec/move"]
[WhiteElo "1371"]
[BlackElo "1302"]

1. e4 {[%clk 00:40:58]} {[%emt 00:00:02]} e6 {[%clk 00:40:50]} {[%emt
00:00:10]} 2. d4 {[%clk 00:41:24]} {[%emt 00:00:04]} d5 {[%clk 00:41:18]}
{[%emt 00:00:02]} 3. Nc3 {[%clk 00:41:50]} {[%emt 00:00:05]} Bb4 {[%clk
00:41:43]} {[%emt 00:00:04]} 4. e5 {[%clk 00:42:17]} {[%emt 00:00:04]} c5
{[%clk 00:42:09]} {[%emt 00:00:04]} 5. a3 {[%clk 00:42:44]} {[%emt 00:00:03]}
Bxc3+ {[%clk 00:42:34]} {[%emt 00:00:05]} 6. bxc3 {[%clk 00:43:10]} {[%emt
00:00:04]} Nc6 {[%clk 00:42:54]} {[%emt 00:00:10]} 7. Qg4 {[%clk 00:43:36]}
{[%emt 00:00:03]} Nge7 {[%clk 00:41:52]} {[%emt 00:01:32]} 8. Qxg7 {[%clk
00:44:00]} {[%emt 00:00:07]} Rg8 {[%clk 00:41:30]} {[%emt 00:00:52]} 9. Qxh7
{[%clk 00:44:24]} {[%emt 00:00:06]} cxd4 {[%clk 00:41:25]} {[%emt 00:00:34]} 10.
Ne2 {[%clk 00:43:51]} {[%emt 00:01:03]} dxc3 {[%clk 00:39:42]} {[%emt
00:02:13]} 11. f4 {[%clk 00:44:02]} {[%emt 00:00:20]} Kd7 {[%clk 00:30:20]}
{[%emt 00:09:52]} 12. Nxc3 {[%clk 00:42:40]} {[%emt 00:01:52]} a6 {[%clk
00:27:57]} {[%emt 00:02:53]} 13. Qxf7 {[%clk 00:39:12]} {[%emt 00:03:58]} Kc7
{[%clk 00:22:50]} {[%emt 00:05:37]} 14. Qh7 {[%clk 00:37:26]} {[%emt 00:02:15]}
Kb8 {[%clk 00:21:22]} {[%emt 00:01:58]} 15. Qd3 {[%clk 00:37:29]} {[%emt
00:00:28]} Nf5 {[%clk 00:19:19]} {[%emt 00:02:33]} 16. Bd2 {[%clk 00:33:41]}
{[%emt 00:04:17]} Qh4+ {[%clk 00:17:20]} {[%emt 00:02:19]} 17. Kd1 {[%clk
00:28:46]} {[%emt 00:05:36]} Ng3 {[%clk 00:14:56]} {[%emt 00:02:53]} 18. Rg1
{[%clk 00:25:30]} {[%emt 00:03:47]} Qxh2 {[%clk 00:14:56]} {[%emt 00:00:29]} 19.
Be3 {[%clk 00:25:44]} {[%emt 00:00:17]} Nxf1 {[%clk 00:11:51]} {[%emt
00:03:34]} 20. Rxf1 {[%clk 00:24:54]} {[%emt 00:01:20]} Rxg2 {[%clk 00:10:27]}
{[%emt 00:01:54]} 21. Nxd5 {[%clk 00:18:36]} {[%emt 00:06:50]} Qh5+ {[%clk
00:06:42]} {[%emt 00:04:13]} 22. Kc1 {[%clk 00:18:56]} {[%emt 00:00:11]} exd5
{[%clk 00:06:39]} {[%emt 00:00:32]} 23. Qxd5 {[%clk 00:16:55]} {[%emt
00:02:31]} Qg6 {[%clk 00:05:54]} {[%emt 00:01:11]} 24. f5 {[%clk 00:15:15]}
{[%emt 00:02:15]} Qg7 {[%clk 00:03:41]} {[%emt 00:02:21]} 25. f6 {[%clk
00:14:45]} {[%emt 00:01:22]} Rxc2+ {[%clk 00:00:48]} {[%emt 00:03:23]} 26. Kxc2
{[%clk 00:14:44]} {[%emt 00:00:32]} Qc7 {[%emt 00:01:06]} 27. Qc5 {[%clk
00:13:22]} {[%emt 00:01:28]} 1-0